fUST/lending_fUST_20250522
["ID","MTS","AMOUNT","RATE_DAILY","PERIOD"]
[361903037,1747878634748,-472.53119661,0.00021917,2]
[361903038,1747878634757,-430.0,0.00021917,2]
[361903039,1747878634767,-430.0,0.00021917,2]
[361903040,1747878634776,-430.0,0.00021917,2]
[361903041,1747878634786,-433.34662178,0.00021917,2]
[361903042,1747878634795,-438.53852053,0.00021917,2]
[361903043,1747878634805,-151.81842907,0.00021917,2]
[361903044,1747878634815,-430.0,0.00021917,2]
[361903045,1747878634824,-430.0,0.00021917,2]
[361903046,1747878634834,-434.90900481,0.00021917,2]
[361903047,1747878634845,-436.57362453,0.00021917,2]
[361903048,1747878634855,-430.0,0.00021917,2]
[361903049,1747878634864,-430.0,0.00021917,2]
[361903050,1747878634875,-436.40433008,0.00021917,2]
[361903051,1747878634884,-430.0,0.00021917,2]
[361903052,1747878634895,-430.0,0.00021917,2]
[361903053,1747878634905,-457.09768351,0.00021917,2]
[361903054,1747878634915,-502.21695183,0.00021917,2]
[361903055,1747878634927,-430.0,0.00021917,2]
[361903056,1747878634937,-501.00401559,0.00021917,2]
[361903057,1747878634947,-430.0,0.00021917,2]
[361903058,1747878634957,-435.60009844,0.00021917,2]
[361903059,1747878634966,-432.0545225,0.00021917,2]
[361903060,1747878634978,-435.3030368,0.00021917,2]
[361903061,1747878634987,-444.94084905,0.00021917,2]
[361903062,1747878634996,-436.94824681,0.00021917,2]
[361903063,1747878635006,-457.85177654,0.00021917,2]
[361903064,1747878635016,-430.0,0.00021917,2]
[361903065,1747878635026,-432.02602633,0.00021917,2]
[361903066,1747878635036,-431.4071277,0.00021917,2]
[361903067,1747878635046,-489.89488189,0.00021917,2]
[361903068,1747878635056,-1491.79,0.00021917,2]
[361903069,1747878635066,-430.0,0.00021917,2]
[361903070,1747878635076,-447.71080915,0.00021917,2]
[361903071,1747878635086,-433.71159689,0.00021917,2]
[361903072,1747878635096,-434.92805024,0.00021917,2]
[361903073,1747878635106,-502.04722992,0.00021917,2]
[361903074,1747878635116,-560.34740709,0.00021917,2]
[361903075,1747878635127,-435.67793844,0.00021917,2]
[361903076,1747878635138,-432.50290133,0.00021917,2]
[361903077,1747878635149,-433.24093765,0.00021917,2]
[361903078,1747878635159,-280.01574918,0.00021917,2]
[361903079,1747878635169,-348.83724238,0.00021917,2]
[361903080,1747878635179,-437.79631893,0.00021917,2]
[361903081,1747878635188,-430.0,0.00021917,2]
[361903082,1747878635197,-443.2237712,0.00021917,2]
[361903083,1747878635207,-461.92541592,0.00021917,2]
[361903084,1747878635216,-412.81341558,0.00021917,2]
[361903085,1747878635226,-436.22715583,0.00021917,2]
[361903086,1747878635235,-430.0,0.00021917,2]
[361903087,1747878635245,-452.64438413,0.00021917,2]
[361903088,1747878635254,-448.12829606,0.00021917,2]
[361903089,1747878635264,-437.73745436,0.00021917,2]
[361903090,1747878635273,-430.0,0.00021917,2]
[361903091,1747878635283,-437.80889382,0.00021917,2]
[361903092,1747878635293,-465.39677554,0.00021917,2]
[361903093,1747878635303,-430.0,0.00021917,2]
[361903094,1747878635313,-431.64170506,0.00021917,2]
[361903095,1747878635323,-538.41,0.00021917,2]
[361903096,1747878635332,-523.74196224,0.00021917,2]
[361903097,1747878635341,-430.0,0.00021917,2]
[361903098,1747878635350,-452.24656411,0.00021917,2]
[361903099,1747878635359,-454.14044287,0.00021917,2]
[361903100,1747878635369,-435.98914739,0.00021917,2]
[361903101,1747878635379,-509.75651386,0.00021917,2]
[361903102,1747878635388,-430.0,0.00021917,2]
[361903103,1747878635398,-430.0,0.00021917,2]
[361903104,1747878635407,-434.73346266,0.00021917,2]
[361903105,1747878635416,-430.0,0.00021917,2]
[361903106,1747878635426,-432.59571987,0.00021917,2]
[361903107,1747878635436,-728.37,0.00021917,2]
[361903108,1747878635445,-430.0,0.00021917,2]
[361903109,1747878635455,-793.2,0.00021917,2]
[361903110,1747878635464,-226.21526487,0.00021917,2]
[361903111,1747878635473,-403.85134154,0.00021917,2]
[361903112,1747878635482,-431.78694812,0.00021917,2]
[361903113,1747878635491,-430.0,0.00021917,2]
[361903114,1747878635500,-430.0,0.00021917,2]
[361903115,1747878635509,-569.8760344,0.00021917,2]
[361903116,1747878635519,-435.00985189,0.00021917,2]
[361903117,1747878635528,-430.0,0.00021917,2]
[361903118,1747878635538,-438.78520673,0.00021917,2]
[361903119,1747878635547,-433.64347748,0.00021917,2]
[361903120,1747878635557,-430.0,0.00021917,2]
[361903121,1747878635567,-430.0,0.00021917,2]
[361903122,1747878635576,-436.63839463,0.00021917,2]
[361903123,1747878635586,-401.63011025,0.00021917,2]
[361903124,1747878635596,-10281.37,0.00021917,2]
[361903125,1747878635605,-10281.37,0.00021917,2]
[361903126,1747878635614,-435.60204512,0.00021917,2]
[361903127,1747878635623,-10281.37,0.00021917,2]
[361903128,1747878635634,-443.4762691,0.00021917,2]
[361903129,1747878635644,-438.53387193,0.00021917,2]
[361903130,1747878635654,-439.58975437,0.00021917,2]
[361903131,1747878635663,-430.0,0.00021917,2]
[361903132,1747878635673,-433.45204961,0.00021917,2]
[361903133,1747878635683,-435.38093492,0.00021917,2]
[361903134,1747878635692,-434.68431041,0.00021917,2]
[361903135,1747878635701,-434.21217023,0.00021917,2]
[361903136,1747878635711,-435.06316495,0.00021917,2]
[361903137,1747878635722,-430.0,0.00021917,2]
[361903138,1747878635731,-435.70661301,0.00021917,2]
[361903139,1747878635740,-425.11264144,0.00021917,2]
[361903140,1747878635750,-430.0,0.00021917,2]
[361903141,1747878635759,-401.56782807,0.00021917,2]
[361903142,1747878635769,-440.50831897,0.00021917,2]
[361903143,1747878635779,-435.76409731,0.00021917,2]
[361903144,1747878635788,-428.42401017,0.00021917,2]
[361903145,1747878635798,-435.57209779,0.00021917,2]
[361903146,1747878635808,-456.85298064,0.00021917,2]
[361903147,1747878635817,-431.96341085,0.00021917,2]
[361903148,1747878635827,-434.20014864,0.00021917,2]
[361903149,1747878635837,-430.0,0.00021917,2]
[361903150,1747878635849,-431.55905675,0.00021917,2]
[361903151,1747878635859,-375.03083005,0.00021917,2]
[361903152,1747878635868,-432.10779008,0.00021917,2]
[361903153,1747878635879,-493.72530065,0.00021917,2]
[361903154,1747878635889,-430.0,0.00021917,2]
[361903155,1747878635898,-709.09,0.00021917,2]
[361903156,1747878635908,-208.85570796,0.00021917,2]
[361903157,1747878635918,-431.02685599,0.00021917,2]
[361903158,1747878635928,-434.62658526,0.00021917,2]
[361903159,1747878635938,-460.52488785,0.00021917,2]
[361903160,1747878635947,-430.0,0.00021917,2]
[361903161,1747878635956,-436.40310453,0.00021917,2]
[361903162,1747878635966,-430.0,0.00021917,2]
[361903163,1747878635975,-1619.68,0.00021917,2]
[361903164,1747878635984,-433.4601533,0.00021917,2]
[361903165,1747878635994,-1068.73664734,0.00021923,2]
[361903166,1747878636004,-583.43515122,0.00021971,2]
[361903167,1747878636014,-10281.37,0.00021999,2]
[361903168,1747878636023,-10281.37,0.00021999,2]
[361903169,1747878636033,-10281.37,0.00021999,2]
[361903170,1747878636043,-10281.37,0.00021999,2]
[361903171,1747878636053,-10281.37,0.00021999,2]
[361903172,1747878636063,-27249.56363936,0.00021999,2]
[361903173,1747878636073,-100034.3476172,0.00022,2]
[361903174,1747878636082,-152.0,0.00022045,2]
[361903175,1747878636092,-531.93156019,0.00022054,2]
[361903176,1747878636102,-1655.01762931,0.00022072,6]
[361903177,1747878636112,-3000.0,0.000221,2]
[361903178,1747878636122,-500.0,0.00022189,2]
[361903179,1747878636135,-10281.37,0.00022189,2]
[361903180,1747878636145,-435.51037439,0.0002219,2]
[361903181,1747878636155,-430.26303247,0.0002219,2]
[361903182,1747878636164,-438.28428317,0.0002219,2]
[361903183,1747878636173,-437.32429608,0.0002219,2]
[361903184,1747878636183,-431.43494529,0.0002219,2]
[361903185,1747878636192,-437.73257034,0.0002219,2]
[361903186,1747878636202,-433.51938777,0.0002219,2]
[361903187,1747878636211,-445.62025944,0.0002219,2]
[361903188,1747878636220,-325.21649945,0.0002219,2]
[361903189,1747878636229,-433.65137989,0.0002219,2]
[361903190,1747878636239,-445.47368471,0.0002219,2]
[361903191,1747878636248,-436.6084266,0.0002219,2]
[361903192,1747878636257,-454.60984174,0.0002219,2]
[361903193,1747878636267,-455.53033818,0.0002219,2]
[361903194,1747878636276,-10281.37,0.0002219,2]
[361903195,1747878636286,-10281.37,0.0002219,2]
[361903196,1747878636295,-500.0,0.00022191,2]
[361903197,1747878636303,-430.0,0.00022191,2]
[361903198,1747878636313,-175.12036181,0.00022191,2]
[361903199,1747878636323,-430.0,0.00022191,2]
[361903200,1747878636332,-430.0,0.00022191,2]
[361903201,1747878636341,-437.14421841,0.00022191,2]
[361903202,1747878636350,-433.64157466,0.00022191,2]
[361903203,1747878636360,-433.25990446,0.00022191,2]
[361903204,1747878636369,-433.34131454,0.00022191,2]
[361903205,1747878636382,-436.28261976,0.00022191,2]
[361903206,1747878636392,-430.0,0.00022191,2]
[361903207,1747878636401,-190.68631319,0.00022191,2]
[361903208,1747878636411,-439.42512734,0.00022191,2]
[361903209,1747878636420,-430.0,0.00022191,2]
[361903210,1747878636430,-266.96760342,0.00022191,2]
[361903211,1747878636440,-688.4,0.00022191,2]
[361903212,1747878636449,-451.59431518,0.00022191,2]
[361903213,1747878636458,-350.68131661,0.00022191,2]
[361903214,1747878636468,-430.0,0.00022191,2]
[361903215,1747878636477,-450.42,0.00022191,2]
[361903216,1747878636487,-451.79171722,0.00022191,2]
[361903217,1747878636496,-295.5857308,0.00022191,2]
[361903218,1747878636505,-430.0,0.00022191,2]
[361903219,1747878636515,-226.56216025,0.00022191,2]
[361903220,1747878636524,-269.38910774,0.00022191,2]
[361903221,1747878636533,-437.03872658,0.00022191,2]
[361903222,1747878636543,-396.42164355,0.00022191,2]
[361903223,1747878636552,-430.0,0.00022191,2]
[361903224,1747878636561,-472.89915549,0.00022191,2]
[361903225,1747878636571,-192.35966812,0.00022191,2]
[361903226,1747878636580,-294.3186333,0.00022191,2]
[361903227,1747878636590,-462.25,0.00022191,2]
[361903228,1747878636599,-430.0,0.00022191,2]
[361903229,1747878636608,-430.0,0.00022191,2]
[361903230,1747878636618,-434.29273999,0.00022191,2]
[361903231,1747878636629,-355.10547725,0.00022191,2]
[361903232,1747878636638,-520.07113942,0.00022191,2]
[361903233,1747878636647,-430.0,0.00022191,2]
[361903234,1747878636656,-232.31231089,0.00022191,2]
[361903235,1747878636665,-430.0,0.00022191,2]
[361903236,1747878636675,-430.0,0.00022191,2]
[361903237,1747878636684,-1061.8,0.00022191,2]
[361903238,1747878636693,-430.0,0.00022191,2]
[361903239,1747878636703,-430.0,0.00022191,2]
[361903240,1747878636712,-342.88381022,0.00022191,2]
[361903241,1747878636722,-430.0,0.00022191,2]
[361903242,1747878636730,-444.67164809,0.00022191,2]
[361903243,1747878636739,-437.21214774,0.00022191,2]
[361903244,1747878636749,-430.0,0.00022191,2]
[361903245,1747878636758,-430.0,0.00022191,2]
[361903246,1747878636769,-430.0,0.00022191,2]
[361903247,1747878636778,-1136.78,0.00022191,2]
[361903248,1747878636788,-430.0,0.00022191,2]
[361903249,1747878636797,-430.0,0.00022191,2]
[361903250,1747878636806,-430.0,0.00022191,2]
[361903251,1747878636815,-440.45801655,0.00022191,2]
[361903252,1747878636825,-430.0,0.00022191,2]
[361903253,1747878636834,-430.0,0.00022191,2]
[361903254,1747878636844,-430.0,0.00022191,2]
[361903255,1747878636855,-430.0,0.00022191,2]
[361903256,1747878636864,-238.78470101,0.00022191,2]
[361903257,1747878636874,-430.0,0.00022191,2]
[361903258,1747878636887,-430.0,0.00022191,2]
[361903259,1747878636897,-437.00439244,0.00022191,2]
[361903260,1747878636906,-430.0,0.00022191,2]
[361903261,1747878636916,-171.28577434,0.00022191,2]
[361903262,1747878636927,-436.32088697,0.00022191,2]
[361903263,1747878636936,-435.75461477,0.00022191,2]
[361903264,1747878636945,-279.69012536,0.00022191,2]
[361903265,1747878636955,-535.3024623,0.00022191,2]
[361903266,1747878636967,-1491.79,0.00022191,2]
[361903267,1747878636975,-372.18207263,0.00022191,2]
[361903268,1747878636984,-440.47994534,0.00022191,2]
[361903269,1747878636993,-430.0,0.00022191,2]
[361903270,1747878637002,-430.0,0.00022191,2]
[361903271,1747878637012,-311.41799593,0.00022191,2]
[361903272,1747878637032,-251.56252246,0.00022191,2]
[361903273,1747878637041,-538.41,0.00022191,2]
[361903274,1747878637051,-430.0,0.00022191,2]
[361903275,1747878637060,-430.0,0.00022191,2]
[361903276,1747878637069,-414.53307114,0.00022191,2]
[361903277,1747878637086,-15.46692886,0.00022191,2]
[361903278,1747878637095,-440.9721214,0.00022191,2]
[361903279,1747878637104,-728.37,0.00022191,2]
[361903280,1747878637114,-430.0,0.00022191,2]
[361903281,1747878637123,-793.2,0.00022191,2]
[361903282,1747878637134,-430.0,0.00022191,2]
[361903283,1747878637143,-430.0,0.00022191,2]
[361903284,1747878637152,-361.1059532,0.00022191,2]
[361903285,1747878637306,-252.62014296,0.00022191,2]
[361903286,1747878637316,-430.0,0.00022191,2]
[361903287,1747878637326,-430.0,0.00022191,2]
[361903288,1747878637336,-430.0,0.00022191,2]
[361903289,1747878637346,-414.95755045,0.00022191,2]
[361903290,1747878637356,-430.0,0.00022191,2]
[361903291,1747878637366,-430.0,0.00022191,2]
[361903292,1747878637376,-709.09,0.00022191,2]
[361903293,1747878637392,-441.46721304,0.00022191,2]
[361903294,1747878637401,-1619.68,0.00022191,2]
[361903295,1747878637411,-583.43515122,0.00022194,2]
[361903296,1747878637421,-1655.01762931,0.00022245,6]
[361903297,1747878637430,-1655.01762931,0.00022417,7]
[361903298,1747878637440,-500.0,0.00022463,2]
[361903299,1747878637449,-10281.37,0.00022463,2]
[361903300,1747878637458,-10281.37,0.00022463,2]
[361903301,1747878637467,-10281.37,0.00022463,2]
[361903302,1747878637476,-10281.37,0.00022463,2]
[361903303,1747878637485,-10281.37,0.00022464,2]
[361903304,1747878637494,-500.0,0.00022465,2]
[361903305,1747878637504,-430.0,0.00022465,2]
[361903306,1747878637513,-430.0,0.00022465,2]
[361903307,1747878637522,-430.0,0.00022465,2]
[361903308,1747878637531,-430.0,0.00022465,2]
[361903309,1747878637541,-294.96016892,0.00022465,2]
[361903310,1747878637550,-688.4,0.00022465,2]
[361903311,1747878637559,-430.0,0.00022465,2]
[361903312,1747878637568,-450.42,0.00022465,2]
[361903313,1747878637577,-430.0,0.00022465,2]
[361903314,1747878637585,-430.0,0.00022465,2]
[361903315,1747878637595,-462.25,0.00022465,2]
[361903316,1747878637604,-217.97944854,0.00022465,2]
[361903317,1747878637613,-430.0,0.00022465,2]
[361903318,1747878637623,-430.0,0.00022465,2]
[361903319,1747878637636,-430.0,0.00022465,2]
[361903320,1747878637646,-430.0,0.00022465,2]
[361903321,1747878637656,-1061.8,0.00022465,2]
[361903322,1747878637665,-430.0,0.00022465,2]
[361903323,1747878637675,-430.0,0.00022465,2]
[361903324,1747878637685,-251.31370888,0.00022465,2]
[361903325,1747878637695,-430.0,0.00022465,2]
[361903326,1747878637704,-430.0,0.00022465,2]
[361903327,1747878637713,-251.66485236,0.00022465,2]
[361903328,1747878637723,-1136.78,0.00022465,2]
[361903329,1747878637732,-151.97774953,0.00022465,2]
[361903330,1747878637741,-420.94554399,0.00022465,2]
[361903331,1747878637751,-274.73744833,0.00022465,2]
[361903332,1747878637760,-430.0,0.00022465,2]
[361903333,1747878637769,-430.0,0.00022465,2]
[361903334,1747878637779,-292.45538721,0.00022465,2]
[361903335,1747878637787,-217.71485918,0.00022465,2]
[361903336,1747878637796,-430.0,0.00022465,2]
[361903337,1747878637806,-430.0,0.00022465,2]
[361903338,1747878637815,-430.0,0.00022465,2]
[361903339,1747878637825,-1491.79,0.00022465,2]
[361903340,1747878637835,-450.6526583,0.00022465,2]
[361903341,1747878637845,-430.0,0.00022465,2]
[361903342,1747878637857,-538.41,0.00022465,2]
[361903343,1747878637866,-491.5639647,0.00022465,2]
[361903344,1747878637875,-430.0,0.00022465,2]
[361903345,1747878637889,-290.0,0.00022465,2]
[361903347,1747878637899,-728.37,0.00022465,2]
[361903348,1747878637908,-430.0,0.00022465,2]
[361903349,1747878637917,-793.2,0.00022465,2]
[361903350,1747878637928,-430.0,0.00022465,2]
[361903351,1747878637938,-430.0,0.00022465,2]
[361903352,1747878637947,-430.0,0.00022465,2]
[361903353,1747878637957,-178.96712814,0.00022465,2]
[361903354,1747878637967,-430.0,0.00022465,2]
[361903355,1747878637976,-430.0,0.00022465,2]
[361903356,1747878637986,-430.0,0.00022465,2]
[361903357,1747878637995,-709.09,0.00022465,2]
[361903358,1747878638004,-1619.68,0.00022465,2]
[361903359,1747878638014,-583.43515124,0.00022472,2]
[361903360,1747878638025,-3196.77559562,0.0002258,2]
[361903361,1747878638035,-1655.01762931,0.0002259,7]
[361903362,1747878638044,-212.41679935,0.00022664,2]
[361903363,1747878638053,-160.0,0.00022664,2]
[361903364,1747878638062,-422.71322487,0.00022664,2]
[361903365,1747878638072,-160.0,0.00022665,2]
[361903366,1747878638081,-160.0,0.00022665,2]
[361903368,1747878638091,-500.0,0.00022678,2]
[361903369,1747878638101,-500.0,0.00022738,2]
[361903371,1747878638111,-505.43129635,0.00022738,2]
[361903373,1747878638120,-160.0,0.00022738,2]
[361903374,1747878638131,-10281.37,0.00022738,2]
[361903375,1747878638140,-504.17253675,0.00022739,2]
[361903376,1747878638149,-430.0,0.00022739,2]
[361903378,1747878638159,-430.0,0.00022739,2]
[361903380,1747878638168,-430.0,0.00022739,2]
[361903381,1747878638178,-430.0,0.00022739,2]
[361903383,1747878638187,-688.4,0.00022739,2]
[361903384,1747878638196,-430.0,0.00022739,2]
[361903385,1747878638206,-450.42,0.00022739,2]
[361903386,1747878638215,-430.0,0.00022739,2]
[361903387,1747878638225,-430.0,0.00022739,2]
[361903389,1747878638235,-462.25,0.00022739,2]
[361903391,1747878638244,-430.0,0.00022739,2]
[361903392,1747878638254,-430.0,0.00022739,2]
[361903393,1747878638263,-513.45083548,0.00022739,2]
[361903394,1747878638271,-430.0,0.00022739,2]
[361903395,1747878638280,-1061.8,0.00022739,2]
[361903396,1747878638289,-430.0,0.00022739,2]
[361903398,1747878638298,-430.0,0.00022739,2]
[361903399,1747878638306,-430.0,0.00022739,2]
[361903400,1747878638314,-279.66023241,0.00022739,2]
[361903401,1747878638323,-1136.78,0.00022739,2]
[361903402,1747878638331,-430.0,0.00022739,2]
[361903403,1747878638339,-430.0,0.00022739,2]
[361903404,1747878638346,-430.0,0.00022739,2]
[361903405,1747878638354,-430.0,0.00022739,2]
[361903406,1747878638363,-430.0,0.00022739,2]
[361903407,1747878638371,-1491.79,0.00022739,2]
[361903408,1747878638383,-430.0,0.00022739,2]
[361903409,1747878638392,-538.41,0.00022739,2]
[361903410,1747878638400,-430.0,0.00022739,2]
[361903411,1747878638408,-728.37,0.00022739,2]
[361903412,1747878638416,-430.0,0.00022739,2]
[361903413,1747878638425,-793.2,0.00022739,2]
[361903414,1747878638435,-430.0,0.00022739,2]
[361903415,1747878638444,-430.0,0.00022739,2]
[361903416,1747878638454,-430.0,0.00022739,2]
[361903417,1747878638463,-430.0,0.00022739,2]
[361903419,1747878638473,-430.0,0.00022739,2]
[361903420,1747878638482,-180.86452578,0.00022739,2]
[361903421,1747878638491,-709.09,0.00022739,2]
[361903422,1747878638503,-1619.68,0.00022739,2]
[361903423,1747878638512,-1655.01762931,0.00022762,7]
[361903424,1747878638522,-150.0,0.0002287,2]
[361903425,1747878638531,-1655.01762931,0.00022934,8]
[361903426,1747878638541,-151.94177062,0.00022956,2]
[361903427,1747878638550,-151.23621945,0.00022956,2]
[361903428,1747878638561,-210.02358159,0.00022956,2]
[361903429,1747878638571,-200.0,0.00023011,30]
[361903430,1747878638581,-10281.37,0.00023012,2]
[361903431,1747878638592,-430.0,0.00023013,2]
[361903432,1747878638604,-430.0,0.00023013,2]
[361903433,1747878638614,-430.0,0.00023013,2]
[361903434,1747878638624,-430.0,0.00023013,2]
[361903435,1747878638636,-688.4,0.00023013,2]
[361903436,1747878638645,-430.0,0.00023013,2]
[361903437,1747878638655,-450.42,0.00023013,2]
[361903438,1747878638666,-230.9213198,0.00023013,2]
[361903439,1747878638676,-430.0,0.00023013,2]
[361903440,1747878638686,-462.25,0.00023013,2]
[361903441,1747878638697,-430.0,0.00023013,2]
[361903442,1747878638707,-430.0,0.00023013,2]
[361903443,1747878638717,-430.0,0.00023013,2]
[361903444,1747878638727,-1061.8,0.00023013,2]
[361903445,1747878638736,-430.0,0.00023013,2]
[361903446,1747878638747,-430.0,0.00023013,2]
[361903447,1747878638758,-430.0,0.00023013,2]
[361903448,1747878638772,-1136.78,0.00023013,2]
[361903449,1747878638781,-430.0,0.00023013,2]
[361903450,1747878638791,-430.0,0.00023013,2]
[361903451,1747878638800,-430.0,0.00023013,2]
[361903452,1747878638809,-430.0,0.00023013,2]
[361903453,1747878638819,-430.0,0.00023013,2]
[361903454,1747878638828,-1491.79,0.00023013,2]
[361903455,1747878638837,-430.0,0.00023013,2]
[361903456,1747878638848,-538.41,0.00023013,2]
[361903457,1747878638860,-430.0,0.00023013,2]
[361903458,1747878638870,-728.37,0.00023013,2]
[361903459,1747878638880,-430.0,0.00023013,2]
[361903460,1747878638890,-793.2,0.00023013,2]
[361903461,1747878638899,-430.0,0.00023013,2]
[361903462,1747878638908,-430.0,0.00023013,2]
[361903463,1747878638918,-430.0,0.00023013,2]
[361903464,1747878638928,-199.124257,0.00023013,7]
[361903465,1747878638937,-199.124257,0.00023013,7]
[361903466,1747878638946,-430.0,0.00023013,2]
[361903467,1747878638956,-430.0,0.00023013,2]
[361903468,1747878638965,-709.09,0.00023013,2]
[361903469,1747878638975,-1619.68,0.00023013,2]
[361903470,1747878638984,-1655.01762931,0.00023107,8]
[361903471,1747878638993,-3196.77559562,0.0002326,2]
[361903472,1747878639002,-1552.0,0.0002326,120]
[361903473,1747878639011,-1552.0,0.0002327,120]
[361903474,1747878639021,-1655.01762931,0.00023279,8]
[361903475,1747878639031,-1552.0,0.0002328,120]
[361903476,1747878639041,-209.18987894,0.00023285,30]
[361903477,1747878639050,-502.54778572,0.00023286,2]
[361903478,1747878639059,-10281.37,0.00023286,2]
[361903479,1747878639069,-10281.37,0.00023286,2]
[361903480,1747878639078,-10281.37,0.00023286,2]
[361903481,1747878639088,-10281.37,0.00023286,2]
[361903482,1747878639098,-10281.37,0.00023286,2]
[361903483,1747878639107,-10281.39831463,0.00023286,2]
[361903484,1747878639117,-430.0,0.00023287,2]
[361903485,1747878639127,-430.0,0.00023287,2]
[361903486,1747878639139,-327.61848829,0.00023287,2]
[361903487,1747878639149,-430.0,0.00023287,2]
[361903488,1747878639159,-688.4,0.00023287,2]
[361903489,1747878639169,-430.0,0.00023287,2]
[361903490,1747878639179,-450.42,0.00023287,2]
[361903491,1747878639188,-430.0,0.00023287,2]
[361903492,1747878639199,-462.25,0.00023287,2]
[361903493,1747878639208,-430.0,0.00023287,2]
[361903494,1747878639218,-430.0,0.00023287,2]
[361903495,1747878639227,-430.0,0.00023287,2]
[361903496,1747878639237,-1061.8,0.00023287,2]
[361903497,1747878639246,-430.0,0.00023287,2]
[361903498,1747878639258,-430.0,0.00023287,2]
[361903499,1747878639267,-430.0,0.00023287,2]
[361903500,1747878639276,-1136.78,0.00023287,2]
[361903501,1747878639286,-430.0,0.00023287,2]
[361903502,1747878639295,-430.0,0.00023287,2]
[361903503,1747878639305,-430.0,0.00023287,2]
[361903504,1747878639314,-430.0,0.00023287,2]
[361903505,1747878639324,-430.0,0.00023287,2]
[361903506,1747878639333,-1491.79,0.00023287,2]
[361903507,1747878639342,-430.0,0.00023287,2]
[361903508,1747878639352,-538.41,0.00023287,2]
[361903509,1747878639363,-430.0,0.00023287,2]
[361903510,1747878639373,-728.37,0.00023287,2]
[361903511,1747878639386,-430.0,0.00023287,2]
[361903512,1747878639395,-793.2,0.00023287,2]
[361903513,1747878639404,-430.0,0.00023287,2]
[361903514,1747878639413,-430.0,0.00023287,2]
[361903515,1747878639423,-508.63555957,0.00023287,2]
[361903516,1747878639432,-430.0,0.00023287,2]
[361903517,1747878639441,-4472.64,0.00023287,2]
[361903518,1747878639452,-430.0,0.00023287,2]
[361903519,1747878639461,-709.09,0.00023287,2]
[361903520,1747878639471,-1619.68,0.00023287,2]
[361903521,1747878639480,-1655.01762931,0.00023452,9]
[361903522,1747878639490,-25588.93929127,0.000235,3]
[361903523,1747878639505,-4416.39397557,0.000235,3]
[361903524,1747878639515,-26002.98788787,0.000235,120]
[361903525,1747878639525,-317.40224,0.0002356,7]
[361903526,1747878639535,-317.40224,0.0002356,7]
[361903527,1747878639544,-151.193482,0.0002356,7]
[361903528,1747878639554,-430.0,0.00023561,2]
[361903529,1747878639564,-430.0,0.00023561,2]
[361903530,1747878639573,-442.62,0.00023561,2]
[361903531,1747878639582,-688.4,0.00023561,2]
[361903532,1747878639592,-430.0,0.00023561,2]
[361903533,1747878639603,-450.42,0.00023561,2]
[361903534,1747878639613,-430.0,0.00023561,2]
[361903535,1747878639623,-462.25,0.00023561,2]
[361903536,1747878639635,-430.0,0.00023561,2]
[361903537,1747878639644,-430.0,0.00023561,2]
[361903538,1747878639654,-430.0,0.00023561,2]
[361903539,1747878639666,-1061.8,0.00023561,2]
[361903540,1747878639676,-430.0,0.00023561,2]
[361903541,1747878639684,-322.68408167,0.00023561,2]
[361903544,1747878640225,-572.64203103,0.00021917,2]
[361903545,1747878640235,-430.0,0.00021917,2]
[361903546,1747878640245,-430.0,0.00021917,2]
[361903547,1747878640254,-439.80137338,0.00022191,2]
[361903548,1747878640264,-229.47546154,0.00022191,2]
[361903549,1747878640273,-107.31591833,0.00023561,2]